[Event "45th FIDE Olympiad 2024"]
[Site "Budapest"]
[Date "2024.09.16"]
[Round "6.16"]
[White "Quickpen, Deborah Ebimobo-Ere"]
[Black "Daniel, Cyrus"]
[Result "1-0"]
[WhiteElo "1918"]
[BlackElo "1759"]
[PlyCount "121"]
[EventDate "2024.09.05"]
[EventType "team-tourn"]
[EventCountry "HUN"]
[WhiteTeam "Nigeria"]
[BlackTeam "Saint Lucia"]
[WhiteTeamCountry "NGR"]
[TimeControl "40/5400+30:1800+30"]

1. e4 e5 2. Nf3 Nc6 3. Bb5 a6 4. Ba4 Nf6 5. d3 b5 6. Bb3 Be7 7. O-O O-O 8. Nbd2 d6 9. Re1 Na5 10. Nf1 c5 11. Ng3 Bd7 12. Bd2 Nxb3 13. axb3 b4 14. Qe2 Ne8 15. Ra2 Nc7 16. Rea1 Bc6 17. Nf5 Bf6 18. h4 g6 19. Nh6+ Kh8 20. Bg5 Bb7 21. Ng4 Bxg5 22. hxg5 Ne6 23. Qe3 Nf4 24. g3 Nh5 25. Kg2 Bc8 26. Nh6 Qe7 27. Nd2 f6 28. Nc4 Rb8 29. gxf6 Qxf6 30. Rh1 Kg7 31. f3 Kh8 32. Ng4 Qe7 33. Raa1 Rf7 34. Qh6 Bxg4 35. fxg4 Nf6 36. Ne3 Qe6 37. Qxg6 Rg8 38. Qf5 Qe8 39. Raf1 Rgf8 40. Nc4 Qe7 41. g5 Ne8 42. Rxh7+ Kg8 43. Qg6+ Ng7 44. Rxf7 Qxf7 45. Qxf7+ Rxf7 46. Rh6 Re7 47. Nxd6 Re6 48. Nc4 Kf7 49. Nd6+ Kg8 50. c3 Re7 51. Nc4 Ne6 52. Nxe5 Nxg5 53. Rg6+ Rg7 54. Rxa6 bxc3 55. bxc3 Kh7 56. b4 cxb4 57. cxb4 Rb7 58. Nc6 Rd7 59. Ra7 Rxa7 60. Nxa7 Ne6 61. Nc6 1-0

[Event "45th FIDE Olympiad 2024"]
[Site "Budapest"]
[Date "2024.09.16"]
[Round "6.17"]
[White "Rodshtein, Maxim"]
[Black "Abdusattorov, Nodirbek"]
[Result "0-1"]
[ECO "C55"]
[WhiteElo "2600"]
[BlackElo "2766"]
[Annotator "TA"]
[PlyCount "110"]
[EventDate "2024.09.05"]
[EventType "team-tourn"]
[EventCountry "HUN"]
[SourceTitle "playchess.com"]
[Source "ChessBase"]
[SourceQuality "1"]
[WhiteTeam "Israel"]
[BlackTeam "Uzbekistan"]
[WhiteTeamCountry "ISR"]
[BlackTeamCountry "UZB"]
[TimeControl "40/5400+30:1800+30"]

{[%evp 12,110,33,30,36,24,27,39,42,33,28,32,35,27,25,10,34,31,55,5,27,12,49,47,70,62,74,68,68,23,44,25,81,23,47,38,54,46,38,49,65,20,21,16,95,85,116,122,115,45,45,39,36,28,22,-7,-4,-10,-4,-12,23,0,0,-28,-44,-83,-94,-129,-50,-120,-119,-175,-137,-130,-120,-131,-130,-131,-112,-168,-139,-130,-124,-464,-458,-450,-469,-465,-447,-711,-488,-5497,-4132,-29969,-29960,-12841,-29947,-3836,-6254,-5485,-5533]} 1. e4 {[%emt 0:00:40]} e5 {[%emt 0:01:27]} 2. Nf3 {[%emt 0:00:16]} Nc6 {[%emt 0:00:14]} 3. Bc4 {[%emt 0:00:17]} Nf6 {[%emt 0:00:10]} 4. d3 {[%emt 0:00:15][%cal Bd2d3,Bd3d4,Bd4d5][%mdl 32]} Be7 {[%emt 0:00:48]} 5. O-O {[%emt 0:01:00]} O-O {[%emt 0:00:11]} 6. Re1 {[%emt 0:00:40]} d6 {[%emt 0:00:20]} 7. a3 {[%emt 0:01:00]} Kh8 {[%emt 0:00:20]} 8. c3 {[%emt 0:08:38]} Nd7 {[%emt 0:11:20]} 9. d4 {[%emt 0:14:37]} Nb6 {[%emt 0:01:39] White is slightly better.} 10. Bd3 {[%emt 0:02:21]} Bg4 {[%emt 0:04:15]} 11. d5 {[%emt 0:04:36]} Nb8 {[%emt 0:00:09]} 12. Nbd2 {[%emt 0:00:11]} a5 {[%emt 0:02:05]} 13. h3 {[%emt 0:02:18]} Bh5 {[%emt 0:00:38]} 14. b3 {[%emt 0:10:54]} f5 {[%emt 0:11:12]} 15. c4 {[%emt 0:02:35]} (15. exf5 $14 Nxd5 16. g4) 15... fxe4 {[%emt 0:15:37]} 16. Bxe4 {[%emt 0:02:26]} Bf7 {[%emt 0:01:55]} 17. Bd3 {[%emt 0:11:31]} Na6 {[%emt 0:02:37]} 18. Qc2 {[%emt 0:00:39]} Bg8 {[%emt 0:00:42]} 19. Ne4 {[%emt 0:00:19]} Nd7 {[%emt 0:02:38]} 20. Be3 {[%emt 0:05:41]} c6 {[%emt 0:00:48]} 21. Nc3 {[%emt 0:02:21]} Ndc5 {[%emt 0:14:36]} (21... Nac5 $11) 22. Be2 {[%emt 0:02:20]} ({Better is} 22. Bf5 $16) 22... h6 {[%emt 0:00:32]} 23. Qb2 $36 {[%emt 0:08:18][%mdl 2048] White has good play.} e4 {[%emt 0:03:26]} 24. Nd4 {[%emt 0:02:08]} Bg5 {[%emt 0:00:33]} 25. Qd2 {[%emt 0:07:08]} Qf6 {[%emt 0:03:33][%cal Of6f2]} 26. Bf1 {[%emt 0:02:23]} (26. dxc6 Qxf2+ (26... bxc6 27. Rf1 $16) 27. Bxf2 Bxd2 28. cxb7 e3 $11) 26... Bxe3 {[%emt 0:02:43]} 27. Rxe3 {[%emt 0:00:41]} Bh7 {[%emt 0:00:30]} (27... cxd5 $11 {remains equal.} 28. cxd5 (28. Nxd5 Bxd5 29. cxd5 Nc7 $17) 28... Nc7) 28. Rae1 $16 {[%emt 0:00:38]} Rae8 {[%emt 0:05:43]} 29. g3 {[%emt 0:04:36]} (29. dxc6 bxc6 30. f3 (30. Nxc6 Nxb3 31. Qa2 Nac5 $11) 30... Bg6 $14) 29... Nc7 {[%emt 0:01:41][%cal Ba6c7,Bc7b5,Bb5d6,Bd6f5,Bf5g3][%mdl 32]} 30. b4 {[%emt 0:03:08]} (30. dxc6 $16 bxc6 31. b4 axb4 32. axb4) 30... cxd5 {[%emt 0:00:23]} 31. bxc5 {[%emt 0:00:27]} dxc5 {[%emt 0:00:05]} 32. Ndb5 {[%emt 0:00:05]} Nxb5 {[%emt 0:00:16]} 33. Nxd5 {[%emt 0:00:52]} Qd4 {[%emt 0:00:16]} 34. Qxa5 {[%emt 0:00:38]} Nd6 {[%emt 0:00:20]} 35. Qc3 $1 {[%emt 0:00:48]} Rf7 {[%emt 0:04:53]} 36. Qc1 {[%emt 0:00:32]} Nf5 {[%emt 0:01:18]} 37. Rd1 {[%emt 0:00:25]} Qe5 {[%emt 0:00:10]} 38. f4 {[%emt 0:00:34]} Qe6 {[%emt 0:01:54]} 39. Rb3 {[%emt 0:00:17] [#]} b5 $1 {[%emt 0:02:21][%mdl 512]} 40. Rxb5 {[%emt 0:00:45]} (40. cxb5 $15 Nd4 41. Re3 Qxd5 42. Bc4) 40... Nxg3 $17 {[%emt 0:01:42]} 41. Rb6 {[%emt 0:03:42] [#]} Qc8 {[%emt 0:01:10][%cal Oe4e3]} 42. Kh2 {[%emt 0:00:34]} Nf5 {[%emt 0:01:40] White must now prevent ...Qd8.} 43. Be2 {[%emt 0:00:39]} Qd8 {[%emt 0:07:36] Strongly threatening ...e3.} 44. Rg1 {[%emt 0:02:21]} (44. Bh5 $2 Qh4 45. Qc2 Qxh5 $19) 44... Ref8 {[%emt 0:05:33]} (44... Qh4 $6 45. Qe1 $15) 45. Bh5 {[%emt 0:13:32]} (45. Qb2 $17) 45... Rd7 $19 {[%emt 0:00:41] ...Rxd5 would now be deadly.} 46. Qb2 {[%emt 0:00:03]} Bg8 {[%emt 0:07:07][%cal Of5d4] And now ...Nd4! would win.} 47. Bg4 $2 {[%emt 0:02:09][%mdl 8192] Now White is beyond hope.} (47. Rc6 $17) 47... Bxd5 {[%emt 0:01:43]} 48. cxd5 {[%emt 0:06:08]} Rxd5 {[%emt 0:00:21]} 49. Rg2 {[%emt 0:02:26] Repels Rd2. Threatens to win with Bxf5.} Nd4 {[%emt 0:00:15][%cal Od8c7] aiming for ...Qc7!} 50. Rg6 {[%emt 0:00:40]} (50. Qb1 $142 e3 (50... Rxf4 $2 51. Rb8 $18) 51. Rg6) 50... Qc7 {[%emt 0:01:09]} ({Stronger than} 50... Rxf4 51. Qb7 Qg8 52. Be6 Nxe6 (52... Nf3+ $2 53. Kg3 $18) 53. Rxh6+ (53. Qxd5 Ng5 $11) 53... gxh6 54. Rxg8+ (54. Qxd5 Qb8 55. Kg1 Ng5 56. Rxg5 hxg5 57. Qxc5 Qb1+ 58. Kh2 Qf1 59. Qe5+ Kh7 60. Qe7+ Kh6 61. Qe6+ Rf6 62. Qa2 Rf2+) 54... Kxg8 55. Qxd5 $16) 51. Qf2 {[%emt 0:00:14]} (51. Kh1 $142) 51... Rxf4 {[%emt 0:01:41]} 52. Qg3 {[%emt 0:00:06] [#]} Rxg4 $1 {[%emt 0:02:35]} 53. hxg4 {[%emt 0:01:16] White is weak on the dark squares} Nf3+ {[%emt 0:00:04]} 54. Kh3 {[%emt 0:00:03]} Qf7 {[%emt 0:00:07]} 55. Qb8+ {[%emt 0:01:01]} Kh7 {[%emt 0:00:02] Weighted Error Value: White=0.47/Black=0.14 (very precise) .  Loses game:     	White=1     	---        Mistake:       	White=7     	Black=2      Inaccurate:     	White=7     	Black=4      OK:         	White=13    	Black=17     Best:        	White=5     	Black=4      Strong:       	White=1     	---} 0-1

[Event "45th FIDE Olympiad 2024"]
[Site "Budapest"]
[Date "2024.09.16"]
[Round "6.17"]
[White "Sihlongonyane, Sikhanyiso"]
[Black "Mesfin, Leykun"]
[Result "0-1"]
[WhiteElo "1813"]
[BlackElo "2118"]
[PlyCount "192"]
[EventDate "2024.09.05"]
[EventType "team-tourn"]
[EventCountry "HUN"]
[WhiteTeam "Eswatini"]
[BlackTeam "Ethiopia"]
[BlackTeamCountry "ETH"]
[TimeControl "40/5400+30:1800+30"]

1. e4 c5 2. Nf3 Nc6 3. d4 cxd4 4. Nxd4 e5 5. Nb5 d6 6. c4 a6 7. N5a3 Nf6 8. Nc3 Be7 9. Nc2 O-O 10. Be2 Nd7 11. O-O Nc5 12. Be3 Bg5 13. Bxg5 Qxg5 14. Qxd6 Bh3 15. Bf3 Ne6 16. Qd1 Rad8 17. Nd5 f5 18. Kh1 fxe4 19. Bxe4 Bg4 20. f3 Bh5 21. Qc1 Nf4 22. g3 Ne6 23. Qxg5 Nxg5 24. Kg2 Nxe4 25. fxe4 Be2 26. Rxf8+ Rxf8 27. Nc3 Bxc4 28. Ne3 Be6 29. Rf1 Rd8 30. Ned5 h6 31. Rf2 Rd7 32. h3 Nd4 33. Rd2 Rf7 34. g4 Nf3 35. Re2 Nh4+ 36. Kg1 Rf3 37. Re3 Rf7 38. Re2 Ng6 39. Rf2 Nf4 40. Nxf4 exf4 41. Rd2 Kh7 42. Kf2 g5 43. Kf3 Kg7 44. h4 Kf6 45. Rh2 Rd7 46. hxg5+ hxg5 47. Rh6+ Ke5 48. Rg6 Rd3+ 49. Kf2 Rd2+ 50. Kf3 Rd3+ 51. Kf2 f3 52. Kg3 b5 53. a3 f2+ 54. Kxf2 Rd2+ 55. Ke3 Rxb2 56. Rxg5+ Kf6 57. Rc5 Rb3 58. Kf4 Rxa3 59. g5+ Ke7 60. Ke5 b4 61. Ne2 b3 62. Rc7+ Kd8 63. Rb7 Bc4 64. Nd4 Kc8 65. Rb4 Bg8 66. Kd6 Ra1 67. Rb6 Rd1 68. Kc5 Rc1+ 69. Kd6 a5 70. Nxb3 Rd1+ 71. Kc5 a4 72. Nd4 a3 73. Ra6 a2 74. g6 a1=Q 75. Rxa1 Rxa1 76. Kd6 Rd1 77. Ke5 Kd7 78. Nf5 Ke8 79. Kf6 Rf1 80. Kg7 Ba2 81. Nd6+ Kd7 82. Nf5 Rf4 83. Kh7 Rxe4 84. g7 Rf4 85. Nh6 Rh4 86. Kg6 Ke8 87. g8=Q+ Bxg8 88. Nxg8 Rg4+ 89. Kh7 Rg5 90. Nh6 Kf8 91. Kh8 Ke7 92. Kh7 Ke6 93. Kh8 Kf6 94. Ng8+ Kf7 95. Nh6+ Kg6 96. Ng8 Rh5+ {0-} 0-1

[Event "45th FIDE Olympiad 2024"]
[Site "Budapest"]
[Date "2024.09.16"]
[Round "6.18"]
[White "Yakubboev, Nodirbek"]
[Black "Gorshtein, Ido"]
[Result "1-0"]
[ECO "E08"]
[WhiteElo "2666"]
[BlackElo "2543"]
[Annotator "TA"]
[PlyCount "73"]
[EventDate "2024.09.05"]
[EventType "team-tourn"]
[EventCountry "HUN"]
[SourceTitle "playchess.com"]
[Source "ChessBase"]
[SourceQuality "1"]
[WhiteTeam "Uzbekistan"]
[BlackTeam "Israel"]
[WhiteTeamCountry "UZB"]
[BlackTeamCountry "ISR"]
[TimeControl "40/5400+30:1800+30"]

{[%evp 17,73,14,24,18,13,31,23,20,23,20,25,23,37,28,22,28,33,18,31,30,31,27,137,124,118,128,106,131,138,121,125,84,87,94,185,190,204,189,197,150,164,179,168,148,166,168,220,217,299,352,375,362,368,336,653,640,2314,2080]} 1. d4 {[%emt 0:00:06]} Nf6 {[%emt 0:02:15]} 2. c4 {[%emt 0:00:22]} e6 {[%emt 0:00:06]} 3. Nf3 {[%emt 0:00:07]} d5 {[%emt 0:00:06]} 4. g3 {[%emt 0:00:04]} Bb4+ {[%emt 0:00:15]} 5. Bd2 {[%emt 0:00:05]} Be7 {[%emt 0:00:07]} 6. Bg2 {[%emt 0:00:08]} O-O {[%emt 0:00:15]} 7. O-O {[%emt 0:00:24]} Nbd7 {[%emt 0:01:01]} 8. Qc2 {[%emt 0:00:10]} c6 {[%emt 0:00:08]} 9. Bf4 {[%emt 0:00:45]} a5 {[%emt 0:04:15]} 10. Rd1 {[%emt 0:09:51]} h6 {[%emt 0:06:24]} 11. Nc3 {[%emt 0:05:39]} dxc4 {[%emt 0:01:30]} 12. Nd2 {[%emt 0:00:07][%cal Bf3d2,Bd2f1,Bf1e3][%mdl 32] White has an edge.} Nb6 {[%emt 0:01:41][%cal Of6d5]} 13. e4 {[%emt 0:00:17][%mdl 1024] White has compensation.} a4 {[%emt 0:08:42]} 14. a3 {[%emt 0:00:15]} Bd7 {[%emt 0:06:18][%cal Bc8d7,Bd7e8,Be8f7][%mdl 32]} (14... Qxd4 $2 15. e5 $18 (15. Be3 Qd8 $14)) 15. h3 {[%emt 0:10:37]} Qc8 {[%emt 0:07:11]} 16. g4 {[%emt 0:01:23]} Rd8 {[%emt 0:09:02]} 17. Nf1 {[%emt 0:01:52]} Be8 {[%emt 0:03:17]} 18. Ne3 {[%emt 0:02:02]} Nfd7 {[%emt 0:01:48]} 19. Bg3 {[%emt 0:07:24]} c5 {[%emt 0:08:56]} (19... f6 $11 {remains equal.}) 20. d5 $16 {[%emt 0:04:08]} Bf6 {[%emt 0:02:06] [#]} 21. dxe6 $1 {[%emt 0:03:10]} fxe6 {[%emt 0:00:41]} 22. Rd6 {[%emt 0:00:05]} Bf7 {[%emt 0:02:29] [#]} 23. e5 $1 {[%emt 0:24:38][%mdl 512]} Be7 {[%emt 0:00:22]} 24. Rd2 {[%emt 0:06:15] White is much more active.} Nb8 {[%emt 0:08:47]} 25. Rxd8+ {[%emt 0:00:23]} Qxd8 {[%emt 0:00:08]} (25... Bxd8 $16 26. Nb5 Nc6) 26. Bxb7 $18 {[%emt 0:02:02]} Ra7 {[%emt 0:00:08]} 27. Rd1 $36 {[%emt 0:03:54][%mdl 2048] White is in control.} Qe8 {[%emt 0:00:07]} 28. Be4 {[%emt 0:01:45]} ({White should try} 28. Qe4 $18) 28... Rd7 {[%emt 0:03:51]} 29. Rxd7 {[%emt 0:03:56]} (29. Nxa4 $2 {perishes.} Rxd1+ 30. Qxd1 Qxa4 $19 (30... Nxa4 31. Nxc4 Qb5 32. Bd3 $17)) 29... Qxd7 {[%emt 0:00:10]} 30. Kh2 {[%emt 0:01:28]} Be8 {[%emt 0:01:52] [#]} 31. Ne2 $1 {[%emt 0:01:07][%cal Bc3e2,Be2f4,Bf4e6][%mdl 32]} Qb5 {[%emt 0:04:58]} (31... Na6 {was worth a try.} 32. Nxc4 Nxc4) 32. Nf4 {[%emt 0:00:27]} Nc6 {[%emt 0:00:37]} 33. Nxe6 {[%emt 0:02:25]} Nd4 {[%emt 0:00:20] Prevents Nf5.} 34. Nxd4 {[%emt 0:00:06]} cxd4 {[%emt 0:00:05]} 35. Nf5 {[%emt 0:00:05][%csl LRd4,LRe7]} Bc5 {[%emt 0:00:28]} (35... Qc5 36. Nxe7+ Qxe7) 36. e6 {[%emt 0:02:30] Black must now prevent Qd2.} Qb3 {[%emt 0:02:15]} 37. Qc1 {[%emt 0:01:05] Weighted Error Value: White=0.07 (flawless) /Black=0.37.  Mistake:       	White=1     	Black=4      Inaccurate:     	White=1     	Black=2      OK:         	White=15    	Black=10     Best:        	White=3     	Black=1      Strong:       	White=1     	---} 1-0

[Event "45th FIDE Olympiad 2024"]
[Site "Budapest"]
[Date "2024.09.16"]
[Round "6.18"]
[White "Birhanu, Tegegn Mehadem"]
[Black "Dlamini, Simphiwe"]
[Result "0-1"]
[WhiteElo "2077"]
[BlackElo "1747"]
[PlyCount "120"]
[EventDate "2024.09.05"]
[EventType "team-tourn"]
[EventCountry "HUN"]
[WhiteTeam "Ethiopia"]
[BlackTeam "Eswatini"]
[WhiteTeamCountry "ETH"]
[TimeControl "40/5400+30:1800+30"]

1. d4 Nf6 2. c4 e6 3. Nc3 Bb4 4. Qc2 b6 5. Bg5 Bb7 6. a3 Be7 7. Nf3 h6 8. Bh4 d5 9. cxd5 exd5 10. e3 O-O 11. Be2 c5 12. O-O Ne4 13. Bxe7 Qxe7 14. Rad1 Nd7 15. Bb5 Ndf6 16. dxc5 Qxc5 17. Nd4 Nxc3 18. Qxc3 Qxc3 19. bxc3 Rac8 20. Rc1 Ne4 21. Ne2 Rc5 22. Bd3 Rfc8 23. f3 Nxc3 24. Nd4 Na4 25. Nb3 Rc3 26. Bf5 R8c4 27. Rb1 Nc5 28. Nd4 Rxe3 29. Nb5 g6 30. Bh3 Ra4 31. Rfc1 Bc6 32. Nxa7 Rxa7 33. Rxb6 Nd3 34. Rbxc6 Nxc1 35. Rxc1 Rexa3 36. Rc8+ Kg7 37. Kf2 h5 38. Rd8 R7a5 39. Bc8 Ra8 40. Re8 Rc3 41. Bd7 Rxe8 42. Bxe8 d4 43. Bb5 Rc2+ 44. Kg3 g5 45. h4 gxh4+ 46. Kxh4 Rxg2 47. Kxh5 f6 48. Kh4 Rg5 49. Bd3 Kf7 50. Kh3 Ke6 51. f4 Rg7 52. Be4 Kd6 53. Bd3 Kc5 54. f5 Kb4 55. Be4 Kc3 56. Bf3 Kd3 57. Bd1 Ke4 58. Be2 d3 59. Bf1 Kf3 60. Kh4 Rh7# {0-} 0-1

[Event "45th FIDE Olympiad 2024"]
[Site "Budapest"]
[Date "2024.09.16"]
[Round "6.19"]
[White "Nabaty, Tamir"]
[Black "Sindarov, Javokhir"]
[Result "1-0"]
[ECO "E73"]
[WhiteElo "2630"]
[BlackElo "2677"]
[Annotator "TA"]
[PlyCount "47"]
[EventDate "2024.09.05"]
[EventType "team-tourn"]
[EventCountry "HUN"]
[SourceTitle "playchess.com"]
[Source "ChessBase"]
[SourceQuality "1"]
[WhiteTeam "Israel"]
[BlackTeam "Uzbekistan"]
[WhiteTeamCountry "ISR"]
[BlackTeamCountry "UZB"]
[TimeControl "40/5400+30:1800+30"]

{[%evp 11,47,24,43,25,39,27,58,31,34,31,22,19,18,18,17,19,24,15,34,0,0,-14,-10,-18,25,19,20,8,16,0,15,0,0,-19,-20,-20,440,437]} 1. d4 {[%emt 0:00:33]} Nf6 {[%emt 0:00:06]} 2. c4 {[%emt 0:00:12]} g6 {[%emt 0:00:06]} 3. h4 {[%emt 0:00:06]} Bg7 {[%emt 0:02:16]} 4. Nc3 {[%emt 0:00:14]} d6 {[%emt 0:00:37]} 5. e4 {[%emt 0:00:30]} h5 {[%emt 0:04:08]} 6. Be2 {[%emt 0:02:46]} O-O {[%emt 0:01:16]} 7. Nf3 {[%emt 0:00:13]} a6 {[%emt 0:07:29]} 8. O-O {[%emt 0:03:34]} c6 {[%emt 0:00:15]} 9. Be3 {[%emt 0:05:55] White is slightly better.} b5 {[%emt 0:01:09]} 10. a3 {[%emt 0:01:02]} Bg4 {[%emt 0:23:17]} 11. cxb5 {[%emt 0:16:29]} cxb5 {[%emt 0:02:27]} 12. e5 {[%emt 0:06:27]} dxe5 {[%emt 0:06:34]} 13. dxe5 {[%emt 0:00:04]} Qxd1 {[%emt 0:04:13]} 14. Rfxd1 {[%emt 0:00:47]} Nfd7 {[%emt 0:02:49] Black is weak on the dark squares} 15. Nd5 {[%emt 0:06:14] [#] e6 would now be deadly.} Nc6 {[%emt 0:00:38][%cal Oa8d8]} 16. e6 {[%emt 0:03:05]} fxe6 {[%emt 0:00:59][%cal Bf7e6,Be6e5,Be5e4][%mdl 32]} ({Of course not} 16... Bxe6 $6 17. Nc7 Nde5 (17... Bxb2 $2 18. Nxe6 fxe6 19. Rab1 $18) 18. Nxa8 Rxa8 19. Rac1 $16) 17. Nc7 {[%emt 0:01:50][%csl LRa8,LRd7]} Rad8 {[%emt 0:00:54]} 18. Nxa6 {[%emt 0:03:41]} Bxb2 {[%emt 0:01:02]} 19. Ra2 $36 {[%emt 0:00:54][%cal Ba1a2,Ba2d2,Bd2d4][%mdl 2080] White is pushing.} Bf6 {[%emt 0:11:38]} 20. Rad2 {[%emt 0:10:21]} e5 {[%emt 0:05:56]} 21. Nc7 {[%emt 0:06:43]} e4 {[%emt 0:02:35]} 22. Nd4 {[%emt 0:10:36]} Nxd4 {[%emt 0:04:18]} 23. Bxg4 {[%emt 0:00:15]} Ne5 $2 {[%emt 0:06:45][%mdl 8192] [#]} (23... hxg4 $11 24. Bxd4 Ne5) 24. Rxd4 {[%emt 0:01:17] Weighted Error Value: White=0.11 (very precise) /Black=0.37.  Loses game:     	---       	Black=1      Inaccurate:     	White=2     	Black=2      OK:         	White=4     	Black=8      Best:        	White=1     	Black=1} 1-0

[Event "45th FIDE Olympiad 2024"]
[Site "Budapest"]
[Date "2024.09.16"]
[Round "6.19"]
[White "Mbongeni, Mabuza"]
[Black "Kebede, Yoseph Kifle"]
[Result "1/2-1/2"]
[WhiteElo "1784"]
[BlackElo "2037"]
[PlyCount "61"]
[EventDate "2024.09.05"]
[EventType "team-tourn"]
[EventCountry "HUN"]
[WhiteTeam "Eswatini"]
[BlackTeam "Ethiopia"]
[BlackTeamCountry "ETH"]
[TimeControl "40/5400+30:1800+30"]

1. d4 d5 2. c4 e6 3. Nf3 Nf6 4. g3 dxc4 5. Bg2 Nc6 6. O-O Rb8 7. a4 b6 8. Na3 Bxa3 9. Rxa3 O-O 10. Re1 Bb7 11. Bg5 h6 12. Bxf6 Qxf6 13. e3 a6 14. Nd2 e5 15. d5 Nb4 16. Nxc4 Rfd8 17. e4 a5 18. Rc3 Ba6 19. Ne3 c6 20. Bf1 Bxf1 21. Kxf1 cxd5 22. exd5 e4 23. Qg4 Nxd5 24. Nxd5 Rxd5 25. Rxe4 Rd2 26. Rf4 Qd8 27. Qf5 Rd1+ 28. Kg2 Qd5+ 29. Qxd5 Rxd5 30. Rc7 f5 31. b4 1/2-1/2